Workbook

Sheet Intro

Sheet Single Sample CI
A3: The user needs to enter targeted level of precision from a sampling objective and summary statistics from pilot sampling
A5: Targeted precision level
B6: Desired confidence level (e.g., 90%, 95%) | J6: 0.9
B7: Desired confidence interval width -- choose one of the following:
A8: =IF(J8<>0,IF(J9<>0,"Warning - enter 1 choice only",""),"") ->  | B8: A. | C8: Confidence interval width as a percent of mean (e.g., within ± 20% of mean) | J8: 0.2
B9: B. | C9: Absolute confidence interval width
I10: Tolerance probability | J10: 0.9
A12: Additional information if sampling from a Finite Population
I13: Specify total population area --> | J13: 1000
I14: Specify area of 1 quadrat --> | J14: 10
I15: Formula yields big N = | J15: =IF(J14>0,J13/J14,10^10) -> 100
A17: Summary statistics from pilot sampling
A18: =IF(SUM(J19:J20)<>0,IF(SUM(J21:J23)<>0,warning,""),"") ->  | C18: A. | D18: Summary statistics derived from data pasted below starting on line 45 | I18: n | J18: =IF(COUNT(J53:J253)>0,COUNT(J53:J253),"") -> 
I19: Sample mean | J19: =IF(COUNT(J53:J253)>0,AVERAGE(J53:J253),"") -> 
I20: Sample standard deviation | J20: =IF(COUNT(J53:J253)>0,STDEV(J53:J253),"") -> 
C21: B. | D21: Summary statistics typed in by user | I21: n | J21: 30
I22: Sample mean | J22: 30
I23: Sample standard deviation | J23: 10
C24: Summary statistics | I24: n | J24: =IF(ISNUMBER(J21)=TRUE,J21,J18) -> 30
I25: Sample mean | J25: =IF(ISNUMBER(J22)=TRUE,J22,J19) -> 30
I26: Sample standard deviation | J26: =IF(ISNUMBER(J23)=TRUE,J23,J20) -> 10
E27: Confidence intervals around sample mean | I27: 95% C.I. | J27: =IF(ISNUMBER(J26)=TRUE,J26/SQRT(J24)*TINV(0.05,J24-1),"") -> 3.734061368
I28: FPC 95% C.I. | J28: =IF(ISNUMBER(J26)=TRUE,IF(J15>0,SQRT((J15-J24)/J15)*J27,J27),"") -> 3.124139883
I29: C.I. width as % of mean | J29: =IF(ISNUMBER(J26)=TRUE,J28/J25,"") -> 0.1041379961
C30: Summary statistics calculated for a population total | I30: Total Population Size | J30: =IF(J15=10^10,"",J15*J25) -> 3000
I31: 95% C.I. | J31: =IF(J15=10^10,"",J15*J27) -> 373.4061368
I32: FPC 95% C.I. | J32: =IF(J15=10^10,"",J15*J28) -> 312.4139883
A34: Sample size to achieve the sampling objective based on pilot sampling results
I35: Calculated absolute confidence interval width | J35: =IF(ISNUMBER(J9)=TRUE,J9,IF(ISNUMBER(J25)=TRUE,J8*J25,"")) -> 6
D37: Sample size (with Kupper and Hafner correction) | J37: =IF(ISNUMBER(J26)=TRUE,IF((((TINV(1-J6,10000))^2)*J26^2/J35^2)>1000,(((TINV(1-J6,10000))^2)*J26^2/J35^2)+60,SQRT(((CHIINV(1-J10,J41-1))*(FINV(1-J6,1,J41-1))/(CHIINV(1-J6,1))*((((TINV(1-J6,10000))^2)*J26^2/J35^2)))+J41)),"") -> 13.66115613
D39: FPC Sample size (with Kupper and Hafner correction) | J39: =IF(ISNUMBER(J26)=TRUE,J37/(1+J37/J15),"") -> 12.01919512
I41: Iterative cell (don't modify) | J41: =IF(ISNUMBER(J26)=TRUE,IF(ISERR(J37),10,ROUND(J37,0)),"") -> 14

Sheet Compare to Threshold
A3: The user needs to enter desired power, acceptable false-change error rate, minimum detectable difference between sample mean & threshold values and summary statistics from pilot sampling
A5: Targeted power, false-change error, minimum detectable difference
B6: Desired power (e.g., 0.80, 0.90) | J6: 0.9
B7: Acceptable false-change error rate (e.g., 0.10, 0.20) | J7: 0.1
B8: Enter 1 or 2 for 1- or 2-sided test | J8: 1
I9: adjusted alpha based on 1-sided or 2-sided test | J9: =IF(J8=1,J7*2,J7) -> 0.2
B10: Minimum Detectable Difference between Sample Mean & Threshold | J10: 5
A12: Additional information if sampling from a Finite Population
I13: Specify total population area --> | J13: 5000
I14: Specify area of 1 quadrat --> | J14: 1
I15: Formula yields big N = | J15: =IF(J14>0,J13/J14,10^10) -> 5000
A17: Summary statistics from pilot sampling
A18: =IF(SUM(J19:J20)<>0,IF(SUM(J21:J23)<>0,warning,""),"") ->  | C18: A. | D18: Summary statistics derived from data pasted below starting on line 50 | I18: n | J18: =IF(COUNT(J52:J252)>0,COUNT(J52:J252),"") -> 
I19: Sample mean | J19: =IF(COUNT(J52:J252)>0,AVERAGE(J52:J252),"") -> 
I20: Sample standard deviation | J20: =IF(COUNT(J52:J252)>0,STDEV(J52:J252),"") -> 
D21: Summary statistics typed in by user | I21: n | J21: 15
I22: Sample mean | J22: 23
I23: Sample standard deviation | J23: 11
C24: Summary statistics copied from one of the above sources that is used in sample size, MDC, and Power calculations | I24: n | J24: =J21 -> 15
I25: Sample mean | J25: =J22 -> 23
I26: Sample standard deviation | J26: =J23 -> 11
E27: Confidence intervals around sample mean | I27: 95% C.I. | J27: =IF(ISNUMBER(J26)=TRUE,J26/SQRT(J24)*TINV(0.05,J24-1),"") -> 6.091596957
I28: FPC 95% C.I. | J28: =IF(ISNUMBER(J26)=TRUE,IF(J15>0,SQRT((J15-J24)/J15)*J27,J27),"") -> 6.082452698
I29: C.I. width as % of mean | J29: =IF(ISNUMBER(J26)=TRUE,J28/J25,"") -> 0.2644544651
C30: Summary statistics calculated for a population total | I30: Total Population Size | J30: =IF(J15=10^10,"",J15*J25) -> 115000
I31: 95% C.I. | J31: =IF(J15=10^10,"",J15*J27) -> 30457.98479
I32: FPC 95% C.I. | J32: =IF(J15=10^10,"",J15*J28) -> 30412.26349
A34: Sample size to achieve the sampling objective based on pilot sampling results
I35: Targeted minimum detectable difference from above | J35: =J10 -> 5
D37: Sample size to meet stated sampling objective | J37: =IF(ISNUMBER(J26)=TRUE,((J26^2)*(TINV(J9,J41)+TINV(2*(1-J6),J41))^2)/((J35)^2),"") -> 32.4850452
C39: FPC-adjusted sample size to meet stated sampling objective | J39: =IF(ISNUMBER(J26)=TRUE,(J37)/(1+(J37/J15)),"") -> 32.27535195
I41: Iterative cell (df) (don't modify) | J41: =IF(ISNUMBER(J26)=TRUE,IF(ISERR(J37),100,(J37)*2-2),"") -> 62.9700904
A43: Minimum detectable difference based on sample size and standard deviation from pilot sampling, at targeted power and stated false-change error rate | J43: =IF(ISNUMBER(J26)=TRUE,SQRT(((J26^2)*(TINV(J9,(J24-1))+TINV(2*(1-J6),(J24-1)))^2)*(1-J24/J15)/(J24)),"") -> 7.628808661
A45: Calculated power based on sample size and standard deviation from pilot sampling, targeted MDD and stated false-change error rate. | J45: =IF(ISNUMBER(J26)=TRUE,IF((SQRT((J24/(1-J24/J15)*(J35)^2)/((J26^2)))-TINV(J9,(J24-1)))<0,((TDIST(ABS((SQRT((J24/(1-J24/J14)*(J35)^2)/((J26^2))))-(TINV(J9,(J24-1)))),J24-1,2))/2),(1-(TDIST((SQRT((J24/(1-J24/J15)*(J35)^2)/((J26^2))))-(TINV(J9,(J24-1))),(J24-1),2))/2)),"") -> 0.6588787545
J50: Enter
I51: Plot | J51: Data below
I52: 1
I53: 2
I54: 3
I55: 4
I56: 5
I57: 6
I58: 7
I59: 8
I60: 9
I61: 10
I62: 11
I63: 12

Sheet Two means -- temporary
A3: The user needs to enter desired power, acceptable false-change error rate, targeted minimum detectable change and summary statistics from pilot sampling
A5: Targeted power, false-change error, minimum detectable change
B6: Desired power (e.g., 0.80, 0.90) | J6: 0.9
B7: Acceptable false-change error rate (e.g., 0.10, 0.20) | J7: 0.1
B8: Enter 1 or 2 for 1- or 2-sided test | J8: 2
I9: adjusted alpha based on 1-sided or 2-sided test | J9: =IF(J8=1,J7*2,J7) -> 0.1
B10: Targeted minimum detectable change -- choose one of the following:
A11: =IF(J11<>0,IF(J12<>0,"Warning - enter 1 choice only",""),"") ->  | B11: A. | C11: MDC as a percent of mean (e.g., within ± 20% of mean) | J11: 0.2
B12: B. | C12: MDC in absolute measurement units
A14: Additional information if sampling from a Finite Population
I15: Specify total population area --> | J15: 50000
I16: Specify area of 1 quadrat --> | J16: 25
I17: Formula yields big N = | J17: =IF(J16>0,J15/J16,10^10) -> 2000
A19: Summary statistics from pilot sampling
A20: =IF(SUM(J21:J22)<>0,IF(SUM(J23:J25)<>0,warning,""),"") ->  | C20: A. | D20: Summary statistics derived from data pasted below starting on line 50 | I20: n | J20: =IF(COUNT(#REF!)>0,COUNT(#REF!),"") -> 
I21: Sample mean | J21: =IF(COUNT(#REF!)>0,AVERAGE(#REF!),"") -> 
I22: Sample standard deviation | J22: =IF(COUNT(#REF!)>0,STDEV(#REF!),"") -> 
C23: B. | D23: Summary statistics typed in by user | I23: n | J23: 10
I24: Sample mean | J24: 25
I25: Sample standard deviation | J25: 7
C26: Summary statistics copied from one of the above sources that is used in sample size, MDC, and Power calculations | I26: n | J26: =IF(ISNUMBER(J23)=TRUE,J23,J20) -> 10
I27: Sample mean | J27: =IF(ISNUMBER(J24)=TRUE,J24,J21) -> 25
I28: Sample standard deviation | J28: =IF(ISNUMBER(J25)=TRUE,J25,J22) -> 7
E29: Confidence intervals around sample mean | I29: 95% C.I. | J29: =IF(ISNUMBER(J28)=TRUE,J28/SQRT(J26)*TINV(0.05,J26-1),"") -> 5.007498342
I30: FPC 95% C.I. | J30: =IF(ISNUMBER(J28)=TRUE,IF(J17>0,SQRT((J17-J26)/J17)*J29,J29),"") -> 4.994963908
I31: C.I. width as % of mean | J31: =IF(ISNUMBER(J28)=TRUE,J30/J27,"") -> 0.1997985563
C32: Summary statistics calculated for a population total | I32: Total Population Size | J32: =IF(J17=10^10,"",J17*J27) -> 50000
I33: 95% C.I. | J33: =IF(J17=10^10,"",J17*J29) -> 10014.99668
I34: FPC 95% C.I. | J34: =IF(J17=10^10,"",J17*J30) -> 9989.927817
A36: Sample size to achieve the sampling objective based on pilot sampling results
I37: Targeted minimum detectable change from one of above sources | J37: =IF(ISNUMBER(J12)=TRUE,J12,IF(ISNUMBER(J27)=TRUE,J11*J27,"")) -> 5
D39: Sample size to meet stated sampling objective | J39: =IF(ISNUMBER(J28)=TRUE,2*((J28^2)*(TINV(J9,J43)+TINV(2*(1-J6),J43))^2)/((J37)^2),"") -> 34.41004123
C41: FPC-adjusted sample size to meet stated sampling objective | J41: =IF(ISNUMBER(J28)=TRUE,(J39)/(1+(J39/J17)),"") -> 33.82802929
I43: Iterative cell (df) (don't modify) | J43: =IF(ISNUMBER(J28)=TRUE,IF(ISERR(J39),100,(J39)*2-2),"") -> 66.82008245
A45: Minimum detectable change size based on sample size and standard deviation from pilot sampling, at targeted power and stated false-change error rate | J45: =IF(ISNUMBER(J28)=TRUE,SQRT(2*((J28^2)*(TINV(J9,(J26*2-2))+TINV(2*(1-J6),(J26*2-2)))^2)*(1-J26/J17)/(J26)),"") -> 9.569246959
A47: Calculated power based on sample size and standard deviation from pilot sampling, targeted MDC and stated false-change error rate. | J47: =IF(ISNUMBER(J28)=TRUE,IF((SQRT((J26/(1-J26/J17)*(J37)^2)/(2*(J28^2)))-TINV(J9,(J26*2-2)))<0,((TDIST(ABS((SQRT((J26/(1-J26/J17)*(J37)^2)/(2*(J28^2))))-(TINV(J9,(J26*2-2)))),J26*2-2,2))/2),(1-(TDIST((SQRT((J26/(1-J26/J17)*(J37)^2)/(2*(J28^2))))-(TINV(J9,(J26*2-2))),(J26*2-2),2))/2)),"") -> 0.4478874262

Sheet Two means -- permanent
A3: The user needs to enter desired power, acceptable false-change error rate, targeted minimum detectable change and summary statistics from pilot sampling
A5: Targeted power, false-change error, minimum detectable change
B6: Desired power (e.g., 0.80, 0.90) | J6: 0.9
B7: Acceptable false-change error rate (e.g., 0.10, 0.20) | J7: 0.1
B8: Enter 1 or 2 for 1- or 2-sided test | J8: 2
I9: adjusted alpha based on 1-sided or 2-sided test | J9: =IF(J8=1,J7*2,J7) -> 0.1
B10: Targeted minimum detectable change -- choose one of the following:
A11: =IF(J11<>0,IF(J12<>0,"Warning - enter 1 choice only",""),"") ->  | B11: A. | C11: MDC as a percent of mean (e.g., within ± 20% of mean) | J11: 0.2
B12: B. | C12: MDC in absolute measurement units
A14: Additional information if sampling from a Finite Population
B15: If no information is specified on lines 15 & 16, an infinite or very large ratio of population size to sampling unit size is assumed. | I15: Specify total population area --> | J15: 100000
I16: Specify area of 1 quadrat --> | J16: 10
I17: Formula yields big N = | J17: =IF(J16>0,J15/J16,10^10) -> 10000
A19: Summary statistics from pilot sampling
A20: =IF(SUM(J20:J22)<>0,IF(SUM(J23:J25)<>0,warning,""),"") ->  | B20: A. | C20: Summary statistics derived from data pasted below starting on line 50 | I20: n
I21: Sample mean or mean difference
I22: Standard dev (or sd of difference)
B23: B. | C23: Summary statistics typed in by user | I23: n | J23: 10
I24: Sample mean or mean difference | J24: 3.6
I25: Standard dev (or sd of difference) | J25: 1.67
B26: If the data in A or B is based on first year of data only, enter "1" and then specify the estimated correlation coefficient on line 28 below. If the data in A or B is based on sampling unit differences, enter "2". If a "2" is entered and the MDC was specified as a relative change above, then enter the mean value to apply the relative change to on line 29 below. | J26: 1
J27: =IF(J26=1,"based on 1 year of data",IF(J26=2,"based on differences","specify 1 or 2 years data")) -> based on 1 year of data
D28: Estimated between-years correlation coefficient | J28: 0.5
B29: Mean value to use as basis for applying a relative MDC (if entered above on line 11) when data is based on between-year (or between-pair) differences | J29: 7.8
B30: Summary statistics copied from one of the above sources that is used in sample size, MDC, and Power calculations | I30: n | J30: 10
I31: Sample mean difference | J31: =IF(ISNUMBER(J24)=TRUE,J24,J21) -> 3.6
I32: Standard deviation of differences | J32: =IF(J26=2,IF(ISNUMBER(J25)=TRUE,J25,J22),IF(J26=1,IF(ISNUMBER(J25)=TRUE,(J25*(SQRT(2*(1-J28)))),(J22*(SQRT(2*(1-J28))))))) -> 1.67
D33: Confidence intervals around sample mean | I33: 95% C.I. | J33: =IF(ISNUMBER(J32)=TRUE,J32/SQRT(J30)*TINV(0.05,J30-1),"") -> 1.194646033
I34: FPC 95% C.I. | J34: =IF(ISNUMBER(J32)=TRUE,IF(J17>0,SQRT((J17-J30)/J17)*J33,J33),"") -> 1.194048561
I35: C.I. width as % of mean | J35: =IF(ISNUMBER(J32)=TRUE,J34/J31,"") -> 0.3316801557
A37: Sample size to achieve the sampling objective based on pilot sampling results
I38: Targeted minimum detectable change | J38: =IF(ISNUMBER(J12)=TRUE,J12, IF(J26=1,(IF(ISNUMBER(J31)=TRUE,J11*J31,"FALSE1")),IF(J26=2,(IF(ISNUMBER(J29)=TRUE,J11*J29,"FALSE2"))))) -> 0.72
D40: Sample size to meet stated sampling objective | J40: =IF(ISNUMBER(J32)=TRUE,((J32^2)*(NORMSINV(1-J7/2)+NORMSINV(J6))^2)/((J38)^2),"") -> 46.07197893
C42: FPC-adjusted sample size to meet stated sampling objective | J42: =IF(ISNUMBER(J32)=TRUE,(J40)/(1+(J40/J17)),"") -> 45.86068966
I44: Iterative cell (df) (don't modify) | J44: =IF(ISNUMBER(J32)=TRUE,IF(ISERR(J40),10,(J40)*1-1),"") -> 45.07197893
A46: Minimum detectable change size based on sample size and standard deviation from pilot sampling, at targeted power and stated false-change error rate | J46: =IF(ISNUMBER(J32)=TRUE,SQRT(((J32^2)*(TINV(J9,(J30-1))+TINV(2*(1-J6),(J30-1)))^2)*(1-J30/J17)/(J30)),"") -> 1.697596169
A48: Calculated power based on sample size and standard deviation from pilot sampling, targeted MDC and stated false-change error rate. | J48: =IF(ISNUMBER(J32)=TRUE,IF((SQRT((J30/(1-J30/J17)*(J38)^2)/(J32^2))-TINV(J9,(J30-1)))<0,((TDIST(ABS((SQRT((J30/(1-J30/J17)*(J38)^2)/(J32^2)))-(TINV(J9,(J30-1)))),J30-1,2))/2),(1-(TDIST((SQRT((J30/(1-J30/J17)*(J38)^2)/(J32^2)))-(TINV(J9,(J30-1))),J30-1,2))/2)),"") -> 0.3250929239

Sheet CI for proportion
AA1: Z-alpha | AB1: =TINV(1-J7,10000) -> 1.645006018 | AD1: Sample size | AE1: =((AB1/AB3)^2)*(AB2)*(1-AB2) -> 173.1868672
AA2: p1 | AB2: =$J$18 -> 0.2 | AD2: Sample size with FPC
AA3: C.I. width | AB3: =$J$9 -> 0.05 | AD3: using n*=n/(1+n/N) | AE3: =(J22)/(1+(J22/$J$14)) -> 173.999997
A4: The user needs to enter targeted level of precision from a sampling objective and summary statistics from pilot sampling
A6: Targeted precision level
B7: Desired confidence level (e.g., 90%, 95%) | J7: 0.9
B8: Desired confidence interval width -- as an absolute value
C9: Absolute confidence interval width | J9: 0.05
A11: Additional information if sampling from a Finite Population
I12: Specify total population area -->
I13: Specify area of 1 quadrat -->
I14: Formula yields big N = | J14: =IF(J13>0,J12/J13,10^10) -> 10000000000
A16: Summary statistics from pilot sampling
D17: Summary statistics typed in by user | I17: n | J17: 50
I18: Sample proportion | J18: 0.2
A20: Sample size to achieve the sampling objective based on pilot sampling results
D22: Sample size | J22: =ROUNDUP(AE1,0) -> 174
D24: FPC Sample size | J24: =ROUNDUP(AE3,0) -> 174
I26: Iterative cell (don't modify)

Sheet Two proportions -- temporary
AA1: Two-sample | AC1: Z-alpha | AD1: =TINV(J9,10000) -> 1.645006018 | AE1: p1 | AF1: =$J$19 -> 0.1 | AG1: Sample size | AH1: Sample size with FPC | AK1: Sokal and Rohlf version | AM1: p - mean | AN1: =(AF1+AF2)/2 -> 0.15 | AO1: Sample size | AP1: Sample size with FPC
AA2: Snedecor and Cochran | AC2: Z-beta | AD2: =TINV(2*(1-J6),10000) -> 1.28163623 | AE2: p2 | AF2: =$J$20 -> 0.2 | AG2: =((AD1+AD2)^2)*((AF1*(1-AF1)+AF2*(1-AF2))/(AF2-AF1)^2) -> 214.1308712 | AH2: using n*=n/(1+n/N) | AI2: =(J25)/(1+(J25/$J$15)) -> 206.1361457 | AM2: A | AN2: =(((AD1)*SQRT(2*(AN1)*(1-AN1)))+((AD2)*SQRT(((AF1)*(1-AF1))+((AF2)*(1-AF2)))))^2 -> 2.165328245 | AO2: =(AN2*(1+SQRT(1+(4*(AF1-AF2)/(AN2))))^2)/(4*(AF1-AF2)^2) -> 196.0226795 | AP2: using n*=n/(1+n/N) | AQ2: =(J28)/(1+(J28/$J$15)) -> 189.5324226
A3: The user needs to enter desired power, acceptable false-change error rate, targeted minimum detectable change and summary statistics from pilot sampling
A5: Targeted power, false-change error, minimum detectable change
B6: Desired power (e.g., 0.80, 0.90) | J6: 0.9
B7: Acceptable false-change error rate (e.g., 0.10, 0.20) | J7: 0.1
B8: Enter 1 or 2 for 1- or 2-sided test | J8: 2
I9: adjusted alpha based on 1-sided or 2-sided test | J9: =IF(J8=1,J7*2,J7) -> 0.1
B10: Targeted minimum detectable change -- Enter data in Cells J19 & J20
A12: Additional information if sampling from a Finite Population
I13: Specify total population area --> | J13: 5000
I14: Specify area of 1 quadrat --> | J14: 1
I15: Formula yields big N = | J15: =IF(J14>0,J13/J14,10^10) -> 5000
A17: Summary statistics from pilot sampling (need to type in summary stats or derive from data pasted into this file starting on line 50)
D18: Summary statistics typed in by user | I18: n | J18: 100
I19: Proportion 1 | J19: 0.1
I20: Proportion 2 | J20: 0.2
A22: Sample size to achieve the sampling objective based on pilot sampling results
I23: Targeted minimum detectable change | J23: =MAX(J19:J20)-MIN(J19:J20) -> 0.1
B25: 2 sample Snedecor and Cochran sample size to meet stated sampling objective | J25: =ROUNDUP(AG2,0) -> 215
C26: FPC-adjusted sample size to meet stated sampling objective | J26: =ROUNDUP(AI2,0) -> 207
B28: 2 sample Sokal and Rohlf sample size to meet stated sampling objective | J28: =ROUNDUP(AO2,0) -> 197 | K28: Propose hiding these cells
C29: FPC-adjusted sample size to meet stated sampling objective | J29: =ROUNDUP(AQ2,0) -> 190
I31: Iterative cell (df) (don't modify) | J31: =IF(ISNUMBER(#REF!)=TRUE,IF(ISERR(#REF!),100,(#REF!)*2-2),"") -> 

Sheet Two stage hidden (hidden)
A3: The user needs to enter desired power, acceptable false-change error rate, targeted minimum detectable change and summary statistics from pilot sampling
A5: Targeted power, false-change error, minimum detectable change
B6: Desired power (e.g., 0.80, 0.90) | J6: =#REF! -> 
B7: Acceptable false-change error rate (e.g., 0.10, 0.20) | J7: =#REF! -> 
B8: Targeted minimum detectable change -- choose one of the following:
A9: =IF(J9<>0,IF(J10<>0,warning,""),"") ->  | B9: A. | C9: MDC as a percent of mean (e.g., within ± 20% of mean) | J9: =#REF! -> 
B10: B. | C10: MDC in absolute measurement units
A12: Additional information if sampling from a Finite Population
I13: Specify total population area --> | J13: =#REF!*#REF! -> 
I14: Specify area of 1 quadrat --> | J14: =#REF! -> 
I15: Formula yields big N = | J15: =IF(J14>0,J13/J14,10^10) -> 
A17: Summary statistics from pilot sampling (need to type in summary stats or derive from data pasted into this file starting on line 50)
A18: =IF(SUM(J19:J20)<>0,IF(SUM(J21:J23)<>0,warning,""),"") ->  | C18: A. | D18: Summary statistics derived from data pasted below starting on line 50 | I18: n | J18: =IF(COUNT(#REF!)>0,COUNT(#REF!),"") -> 
I19: Sample mean | J19: =IF(COUNT(#REF!)>0,AVERAGE(#REF!),"") -> 
I20: Sample standard deviation | J20: =IF(COUNT(#REF!)>0,STDEV(#REF!),"") -> 
C21: B. | D21: Summary statistics typed in by user | I21: n | J21: =#REF!*#REF! -> 
I22: Sample mean | J22: =#REF! -> 
I23: Sample standard deviation | J23: =#REF! -> 
C24: Summary statistics copied from one of the above sources that is used in sample size, MDC, and Power calculations | I24: n | J24: =IF(ISNUMBER(J21)=TRUE,J21,J18) -> 
I25: Sample mean | J25: =IF(ISNUMBER(J22)=TRUE,J22,J19) -> 
I26: Sample standard deviation | J26: =IF(ISNUMBER(J23)=TRUE,J23,J20) -> 
E27: Confidence intervals around sample mean | I27: 95% C.I. | J27: =IF(ISNUMBER(J26)=TRUE,J26/SQRT(J24)*TINV(0.05,J24-1),"") -> 
I28: FPC 95% C.I. | J28: =IF(ISNUMBER(J26)=TRUE,IF(J15>0,SQRT((J15-J24)/J15)*J27,J27),"") -> 
I29: C.I. width as % of mean | J29: =IF(ISNUMBER(J26)=TRUE,J28/J25,"") -> 
C30: Summary statistics calculated for a population total | I30: Total Population Size | J30: =IF(J15=10^10,"",J15*J25) -> 
I31: 95% C.I. | J31: =IF(J15=10^10,"",J15*J27) -> 
I32: FPC 95% C.I. | J32: =IF(J15=10^10,"",J15*J28) -> 
A34: Sample size to achieve the sampling objective based on pilot sampling results
I35: Targeted minimum detectable change from one of above sources | J35: =IF(ISNUMBER(J10)=TRUE,J10,IF(ISNUMBER(J25)=TRUE,J9*J25,"")) -> 
D37: Sample size to meet stated sampling objective | J37: =IF(ISNUMBER(J26)=TRUE,2*((J26^2)*(TINV(J7,J41)+TINV(2*(1-J6),J41))^2)/((J35)^2),"") -> 
C39: FPC-adjusted sample size to meet stated sampling objective | J39: =IF(ISNUMBER(J26)=TRUE,(J37)/(1+(J37/J15)),"") -> 
I41: Iterative cell (df) (don't modify) | J41: =IF(ISNUMBER(J26)=TRUE,IF(ISERR(J37),100,(J37)*2-2),"") -> 
A43: Minimum detectable change size based on sample size and standard deviation from pilot sampling, at targeted power and stated false-change error rate | J43: =IF(ISNUMBER(J26)=TRUE,SQRT(2*((J26^2)*(TINV(J7,(J24*2-2))+TINV(2*(1-J6),(J24*2-2)))^2)*(1-J24/J15)/(J24)),"") -> 
A45: Calculated power based on sample size and standard deviation from pilot sampling, targeted MDC and stated false-change error rate. | J45: =IF(ISNUMBER(J26)=TRUE,IF((SQRT((J24/(1-J24/J15)*(J35)^2)/(2*(J26^2)))-TINV(J7,(J24*2-2)))<0,((TDIST(ABS((SQRT((J24/(1-J24/J15)*(J35)^2)/(2*(J26^2))))-(TINV(J7,(J24*2-2)))),J24*2-2,2))/2),(1-(TDIST((SQRT((J24/(1-J24/J15)*(J35)^2)/(2*(J26^2))))-(TINV(J7,(J24*2-2))),(J24*2-2),2))/2)),"") -> 
